lending/lending_fUSD_20250114
["ID","MTS","AMOUNT","RATE_DAILY","PERIOD"]
[348870449,1736836242281,-500.0,9.998e-05,2]
[348870450,1736836242290,-500.0,9.998e-05,2]
[348870451,1736836242299,-500.0,9.998e-05,2]
[348870452,1736836242309,-2071.66,9.998e-05,2]
[348870453,1736836242318,-1918.58,9.998e-05,2]
[348870454,1736836242328,-500.0,9.999e-05,2]
[348870455,1736836242337,-255.57985822,9.999e-05,2]
[348870456,1736836242419,-244.42014178,9.999e-05,2]
[348870457,1736836242428,-500.0,9.999e-05,2]
[348870458,1736836242439,-500.0,9.999e-05,2]
[348870459,1736836242449,-500.0,9.999e-05,2]
[348870460,1736836242458,-505.65,9.999e-05,2]
[348870461,1736836242468,-500.0,9.999e-05,2]
[348870462,1736836242477,-500.0,9.999e-05,2]
[348870463,1736836242486,-500.0,9.999e-05,2]
[348870464,1736836242501,-500.0,9.999e-05,2]
[348870465,1736836242511,-500.0,9.999e-05,2]
[348870466,1736836242520,-500.0,9.999e-05,2]
[348870467,1736836242530,-500.0,9.999e-05,2]
[348870468,1736836242541,-500.0,9.999e-05,2]
[348870469,1736836242551,-500.0,9.999e-05,2]
[348870470,1736836242561,-500.0,9.999e-05,2]
[348870471,1736836242571,-500.0,9.999e-05,2]
[348870472,1736836242580,-500.0,9.999e-05,2]
[348870474,1736836242590,-500.0,9.999e-05,2]
[348870476,1736836242599,-500.0,9.999e-05,2]
[348870478,1736836242609,-500.0,9.999e-05,2]
[348870480,1736836242618,-162.46231807,9.999e-05,2]
[348870488,1736836242982,-2721.28325512,9.997e-05,2]
[348870489,1736836242994,-808.76674488,9.997e-05,2]
[348870490,1736836243004,-1209.05,9.997e-05,2]
[348870491,1736836243014,-158.928891,9.997e-05,2]
[348870492,1736836243024,-337.53768193,9.999e-05,2]
[348870493,1736836243033,-500.0,9.999e-05,2]
[348870494,1736836243043,-500.0,9.999e-05,2]
[348870495,1736836243054,-375.56,9.999e-05,2]
[348870496,1736836243064,-385.21506558,9.999e-05,2]
[348870497,1736836243074,-453.35806046,9.999e-05,2]
[348870498,1736836243084,-500.0,9.999e-05,2]
[348870499,1736836243093,-461.52289608,9.999e-05,2]
[348870500,1736836243103,-500.0,9.999e-05,2]
[348870501,1736836243113,-500.0,9.999e-05,2]
[348870502,1736836243123,-500.0,9.999e-05,2]
[348870503,1736836243132,-500.0,9.999e-05,2]
[348870504,1736836243143,-500.0,9.999e-05,2]
[348870505,1736836243153,-500.0,9.999e-05,2]
[348870507,1736836243163,-500.0,9.999e-05,2]
[348870508,1736836243172,-505.27925976,9.999e-05,2]
[348870509,1736836243181,-500.0,9.999e-05,2]
[348870510,1736836243190,-500.0,9.999e-05,2]
[348870512,1736836243199,-500.0,9.999e-05,2]
[348870514,1736836243209,-500.0,9.999e-05,2]
[348870515,1736836243219,-500.0,9.999e-05,2]
[348870516,1736836243228,-500.0,9.999e-05,2]
[348870517,1736836243237,-500.0,9.999e-05,2]
[348870518,1736836243246,-500.0,9.999e-05,2]
[348870519,1736836243255,-500.0,9.999e-05,2]
[348870520,1736836243264,-500.0,9.999e-05,2]
[348870521,1736836243274,-500.0,9.999e-05,2]
[348870522,1736836243283,-500.0,9.999e-05,2]
[348870523,1736836243292,-500.0,9.999e-05,2]
[348870524,1736836243302,-500.0,9.999e-05,2]
[348870525,1736836243311,-500.0,9.999e-05,2]
[348870527,1736836243320,-500.0,9.999e-05,2]
[348870529,1736836243330,-500.0,9.999e-05,2]
[348870531,1736836243340,-500.0,9.999e-05,2]
[348870532,1736836243350,-500.0,9.999e-05,2]
[348870533,1736836243360,-500.0,9.999e-05,2]
[348870534,1736836243370,-500.0,9.999e-05,2]
[348870535,1736836243380,-500.0,9.999e-05,2]
[348870536,1736836243390,-500.0,9.999e-05,2]
[348870537,1736836243401,-500.0,9.999e-05,2]
[348870538,1736836243410,-500.0,9.999e-05,2]
[348870539,1736836243420,-500.0,9.999e-05,2]
[348870540,1736836243430,-500.0,9.999e-05,2]
[348870541,1736836243440,-500.0,9.999e-05,2]
[348870542,1736836243449,-500.0,9.999e-05,2]
[348870544,1736836243459,-500.0,9.999e-05,2]
[348870546,1736836243469,-506.04063891,9.999e-05,2]
[348870548,1736836243479,-500.0,9.999e-05,2]
[348870550,1736836243490,-500.0,9.999e-05,2]
[348870552,1736836243505,-500.0,9.999e-05,2]
[348870554,1736836243515,-3084.94,9.999e-05,2]
[348870556,1736836243524,-500.0,9.999e-05,2]
[348870558,1736836243534,-500.0,9.999e-05,2]
[348870559,1736836243544,-824.19,9.999e-05,2]
[348870560,1736836243553,-2881.4,9.999e-05,2]
[348870561,1736836243563,-500.0,9.999e-05,2]
[348870562,1736836243572,-500.0,9.999e-05,2]
[348870563,1736836243582,-3793.54392136,9.999e-05,2]
[348870564,1736836243593,-500.0,9.999e-05,2]
[348870565,1736836243605,-691.62,9.999e-05,2]
[348870566,1736836243614,-500.0,9.999e-05,2]
[348870567,1736836243624,-500.0,9.999e-05,2]
[348870568,1736836243634,-500.0,9.999e-05,2]
[348870569,1736836243643,-500.0,9.999e-05,2]
[348870570,1736836243653,-500.0,9.999e-05,2]
[348870571,1736836243662,-1019.38,9.999e-05,2]
[348870572,1736836243672,-500.0,9.999e-05,2]
[348870573,1736836243681,-500.0,9.999e-05,2]
[348870574,1736836243691,-366.45161282,9.999e-05,2]
[348870575,1736836243700,-500.0,9.999e-05,2]
[348870576,1736836243710,-500.0,9.999e-05,2]
[348870577,1736836243720,-500.0,9.999e-05,2]
[348870578,1736836243730,-517.25307841,9.999e-05,2]
[348870579,1736836243740,-179.37692895,9.999e-05,2]
[348870580,1736836243750,-377.93478507,9.999e-05,2]
[348870581,1736836243760,-507.81364877,9.999e-05,2]
[348870582,1736836243770,-187112.53684643,0.0001,2]
[348870583,1736836243802,-699.5899999,0.0001,2]
[348870584,1736836243814,-424.49932413,0.0001,2]
[348870585,1736836243852,-500.57827625,0.0001,2]
[348870586,1736836243864,-3953.81927455,0.0001,2]
[348870595,1736836245916,-500.0,9.996e-05,2]
[348870596,1736836245926,-500.0,9.997e-05,2]
[348870597,1736836245935,-7039.61974305,0.0001,2]
[348870598,1736836245946,-4652.80856975,0.0001,2]
[348870599,1736836245959,-1199.4,0.0001,2]
[348870600,1736836245970,-44417.14796594,0.0001,2]
[348870601,1736836245980,-508.0,0.0001,2]
[348870602,1736836245989,-13759.19252814,0.0001,2]
[348870603,1736836246002,-861.50004575,0.0001,2]
[348870604,1736836246013,-1138.28203649,0.0001,2]
[348870614,1736836899421,905.16,8.219e-05,2]
[348870630,1736837431889,-500.0,8.799e-05,2]
[348870631,1736837431926,-366.03,8.799e-05,2]
[348870633,1736837431937,-323.190903,8.799e-05,2]
[348870634,1736837431947,-465.309097,8.844e-05,2]
[348870635,1736837431958,-417.98026338,8.844e-05,2]
[348870636,1736837432046,-484.61911431,8.844e-05,2]
[348870637,1736837432167,-6.25152531,8.844e-05,2]
[348870638,1736837432177,-986.58847469,8.869e-05,2]
[348870639,1736837432191,-317.358257,8.869e-05,2]
[348870640,1736837432200,-826.51,8.869e-05,2]
[348870641,1736837432211,-4230.01098901,8.901e-05,2]
[348870642,1736837432237,-213.66901099,8.901e-05,2]
[348870643,1736837432246,-289.43098901,8.913e-05,2]
[348870644,1736837432342,-10.56901099,8.913e-05,2]
[348870645,1736837432351,-276.16,8.959e-05,2]
[348870646,1736837432361,-329.8153,9.063e-05,2]
[348870647,1736837432371,-250.0,9.144e-05,2]
[348870648,1736837432380,-1000.0,9.159e-05,2]
[348870649,1736837432390,-416.85,9.163e-05,2]
[348870650,1736837432399,-224.37,9.196e-05,2]
[348870651,1736837432408,-833.24,9.232e-05,2]
[348870652,1736837432417,-250.0,9.413e-05,2]
[348870653,1736837432428,-875.08,9.441e-05,2]
[348870654,1736837432447,-156.779,9.5e-05,2]
[348870655,1736837432458,-300.9,9.565e-05,2]
[348870656,1736837432468,-150.0,9.995e-05,2]
[348870657,1736837432477,-500.0,9.996e-05,2]
[348870658,1736837432487,-500.0,9.996e-05,2]
[348870659,1736837432496,-500.0,9.996e-05,2]
[348870660,1736837432505,-500.0,9.996e-05,2]
[348870661,1736837432515,-500.0,9.996e-05,2]
[348870662,1736837432524,-500.0,9.996e-05,2]
[348870663,1736837432534,-500.0,9.996e-05,2]
[348870664,1736837432543,-500.0,9.996e-05,2]
[348870665,1736837432553,-500.0,9.996e-05,2]
[348870666,1736837432562,-500.0,9.996e-05,2]
[348870667,1736837432572,-500.0,9.996e-05,2]
[348870668,1736837432581,-500.0,9.996e-05,2]
[348870669,1736837432590,-500.0,9.996e-05,2]
[348870671,1736837432600,-500.0,9.996e-05,2]
[348870673,1736837432609,-500.0,9.996e-05,2]
[348870674,1736837432618,-613.89626264,9.996e-05,2]
[348870675,1736837432628,-508.88257232,9.996e-05,2]
[348870676,1736837432637,-500.0,9.996e-05,2]
[348870677,1736837432646,-500.0,9.996e-05,2]
[348870678,1736837432656,-500.0,9.996e-05,2]
[348870679,1736837432665,-500.0,9.996e-05,2]
[348870680,1736837432675,-500.0,9.996e-05,2]
[348870681,1736837432684,-500.0,9.996e-05,2]
[348870682,1736837432694,-500.0,9.996e-05,2]
[348870683,1736837432703,-500.0,9.996e-05,2]
[348870684,1736837432712,-500.0,9.996e-05,2]
[348870685,1736837432722,-500.0,9.996e-05,2]
[348870686,1736837432731,-500.0,9.996e-05,2]
[348870687,1736837432741,-500.0,9.996e-05,2]
[348870688,1736837432750,-500.0,9.996e-05,2]
[348870689,1736837432760,-500.0,9.996e-05,2]
[348870690,1736837432769,-500.0,9.996e-05,2]
[348870691,1736837432779,-757.68,9.996e-05,2]
[348870692,1736837432789,-500.0,9.996e-05,2]
[348870693,1736837432799,-500.0,9.996e-05,2]
[348870694,1736837432809,-554.36,9.996e-05,2]
[348870695,1736837432819,-500.0,9.996e-05,2]
[348870696,1736837432828,-711.09,9.996e-05,2]
[348870697,1736837432837,-500.0,9.996e-05,2]
[348870698,1736837432847,-500.0,9.996e-05,2]
[348870699,1736837432857,-500.0,9.996e-05,2]
[348870700,1736837432866,-500.0,9.996e-05,2]
[348870701,1736837432875,-500.0,9.996e-05,2]
[348870702,1736837432885,-500.0,9.996e-05,2]
[348870703,1736837432895,-500.0,9.996e-05,2]
[348870704,1736837432905,-500.0,9.996e-05,2]
[348870705,1736837432914,-500.0,9.996e-05,2]
[348870706,1736837432924,-393.02895358,9.996e-05,2]
[348870707,1736837432937,-106.97104642,9.996e-05,2]
[348870708,1736837432946,-415.66801524,9.996e-05,2]
[348870709,1736837432958,-84.33198476,9.996e-05,2]
[348870710,1736837432967,-500.0,9.996e-05,2]
[348870711,1736837432977,-500.0,9.996e-05,2]
[348870712,1736837432986,-500.0,9.996e-05,2]
[348870713,1736837432996,-500.0,9.996e-05,2]
[348870714,1736837433006,-500.0,9.996e-05,2]
[348870715,1736837433016,-500.0,9.996e-05,2]
[348870716,1736837433026,-500.0,9.996e-05,2]
[348870717,1736837433036,-500.0,9.996e-05,2]
[348870718,1736837433046,-500.0,9.996e-05,2]
[348870719,1736837433056,-500.0,9.996e-05,2]
[348870720,1736837433067,-500.0,9.996e-05,2]
[348870721,1736837433077,-508.23748711,9.996e-05,2]
[348870722,1736837433087,-500.0,9.996e-05,2]
[348870723,1736837433097,-500.0,9.996e-05,2]
[348870724,1736837433107,-500.0,9.996e-05,2]
[348870725,1736837433118,-500.0,9.996e-05,2]
[348870726,1736837433128,-500.0,9.996e-05,2]
[348870727,1736837433137,-500.0,9.996e-05,2]
[348870728,1736837433147,-642.04,9.996e-05,2]
[348870729,1736837433157,-500.0,9.996e-05,2]
[348870730,1736837433167,-800.81,9.996e-05,2]
[348870731,1736837433177,-500.0,9.996e-05,2]
[348870732,1736837433186,-500.0,9.996e-05,2]
[348870733,1736837433196,-500.0,9.996e-05,2]
[348870734,1736837433206,-500.0,9.996e-05,2]
[348870735,1736837433215,-551.9,9.996e-05,2]
[348870736,1736837433225,-500.0,9.996e-05,2]
[348870737,1736837433234,-500.0,9.996e-05,2]
[348870738,1736837433244,-743.27,9.996e-05,2]
[348870739,1736837433254,-500.0,9.996e-05,2]
[348870740,1736837433264,-500.0,9.996e-05,2]
[348870741,1736837433273,-500.0,9.996e-05,2]
[348870742,1736837433283,-815.64,9.996e-05,2]
[348870743,1736837433294,-500.0,9.996e-05,2]
[348870744,1736837433305,-749.84,9.996e-05,2]
[348870745,1736837433315,-500.0,9.996e-05,2]
[348870746,1736837433325,-500.0,9.996e-05,2]
[348870747,1736837433335,-500.0,9.996e-05,2]
[348870748,1736837433345,-500.0,9.996e-05,2]
[348870749,1736837433355,-500.0,9.996e-05,2]
[348870750,1736837433364,-500.0,9.996e-05,2]
[348870751,1736837433375,-500.0,9.996e-05,2]
[348870752,1736837433385,-623.01,9.996e-05,2]
[348870753,1736837433394,-500.0,9.996e-05,2]
[348870754,1736837433404,-500.0,9.996e-05,2]
[348870755,1736837433414,-500.0,9.996e-05,2]
[348870756,1736837433423,-500.0,9.996e-05,2]
[348870757,1736837433436,-500.0,9.996e-05,2]
[348870758,1736837433446,-500.0,9.996e-05,2]
[348870759,1736837433456,-500.0,9.996e-05,2]
[348870760,1736837433466,-583.73,9.996e-05,2]
[348870761,1736837433477,-608.64,9.996e-05,2]
[348870762,1736837433487,-500.0,9.996e-05,2]
[348870763,1736837433497,-500.0,9.996e-05,2]
[348870764,1736837433507,-500.0,9.996e-05,2]
[348870765,1736837433518,-500.0,9.996e-05,2]
[348870766,1736837433527,-500.0,9.996e-05,2]
[348870767,1736837433537,-500.0,9.996e-05,2]
[348870768,1736837433548,-500.0,9.996e-05,2]
[348870769,1736837433558,-500.0,9.996e-05,2]
[348870770,1736837433568,-544.99,9.996e-05,2]
[348870771,1736837433578,-500.0,9.996e-05,2]
[348870772,1736837433587,-909.41,9.996e-05,2]
[348870773,1736837433597,-500.0,9.996e-05,2]
[348870774,1736837433608,-500.0,9.996e-05,2]
[348870775,1736837433617,-363.23420496,9.996e-05,2]
[348870776,1736837433630,-217.22579504,9.996e-05,2]
[348870777,1736837433640,-500.0,9.996e-05,2]
[348870778,1736837433650,-607.12,9.996e-05,2]
[348870779,1736837433660,-547.34,9.996e-05,2]
[348870780,1736837433670,-500.0,9.996e-05,2]
[348870781,1736837433680,-500.0,9.996e-05,2]
[348870782,1736837433689,-500.0,9.996e-05,2]
[348870783,1736837433699,-500.0,9.996e-05,2]
[348870784,1736837433710,-500.0,9.996e-05,2]
[348870785,1736837433719,-957.26,9.996e-05,2]
[348870786,1736837433729,-500.0,9.996e-05,2]
[348870787,1736837433738,-845.16,9.996e-05,2]
[348870788,1736837433748,-500.0,9.997e-05,2]
[348870789,1736837433757,-898.96,9.997e-05,2]
[348870790,1736837433767,-500.0,9.997e-05,2]
[348870791,1736837433777,-500.0,9.997e-05,2]
[348870792,1736837433787,-533.32,9.997e-05,2]
[348870793,1736837433797,-500.0,9.997e-05,2]
[348870794,1736837433806,-500.0,9.997e-05,2]
[348870795,1736837433816,-783.08,9.997e-05,2]
[348870796,1736837433826,-1862.48,9.997e-05,2]
[348870797,1736837433836,-758.09,9.997e-05,2]
[348870798,1736837433845,-500.0,9.997e-05,2]
[348870799,1736837433855,-965.5,9.997e-05,2]
[348870800,1736837433865,-579.42,9.997e-05,2]
[348870801,1736837433875,-500.0,9.997e-05,2]
[348870802,1736837433885,-1449.41,9.997e-05,2]
[348870803,1736837433894,-510.38136374,9.997e-05,2]
[348870804,1736837433904,-3858.09,9.997e-05,2]
[348870805,1736837433914,-500.0,9.997e-05,2]
[348870806,1736837433924,-500.0,9.997e-05,2]
[348870807,1736837433933,-500.0,9.997e-05,2]
[348870808,1736837433944,-500.0,9.997e-05,2]
[348870809,1736837433954,-500.0,9.997e-05,2]
[348870810,1736837433964,-500.0,9.997e-05,2]
[348870811,1736837433973,-1102.21,9.997e-05,2]
[348870812,1736837433983,-500.0,9.997e-05,2]
[348870813,1736837433993,-1629.61,9.997e-05,2]
[348870814,1736837434002,-1502.0,9.997e-05,2]
[348870815,1736837434013,-500.0,9.997e-05,2]
[348870816,1736837434022,-1688.05,9.997e-05,2]
[348870817,1736837434033,-1089.6,9.997e-05,2]
[348870818,1736837434043,-500.0,9.997e-05,2]
[348870819,1736837434053,-3316.82,9.997e-05,2]
[348870820,1736837434063,-500.0,9.997e-05,2]
[348870821,1736837434073,-500.0,9.997e-05,2]
[348870822,1736837434083,-930.15,9.997e-05,2]
[348870823,1736837434093,-657.75,9.997e-05,2]
[348870824,1736837434103,-1360.98,9.997e-05,2]
[348870825,1736837434112,-2985.8,9.997e-05,2]
[348870826,1736837434123,-1457.31,9.997e-05,2]
[348870827,1736837434132,-1000.0,9.997e-05,2]
[348870828,1736837434143,-2764.5,9.997e-05,2]
[348870829,1736837434152,-500.0,9.997e-05,2]
[348870830,1736837434162,-867.95,9.997e-05,2]
[348870831,1736837434172,-500.0,9.997e-05,2]
[348870832,1736837434182,-7980.53,9.997e-05,2]
[348870833,1736837434192,-1827.58,9.997e-05,2]
[348870834,1736837434202,-500.0,9.997e-05,2]
[348870835,1736837434211,-1411.4,9.997e-05,2]
[348870836,1736837434221,-500.0,9.997e-05,2]
[348870837,1736837434231,-702.51,9.997e-05,2]
[348870838,1736837434241,-526.27099698,9.997e-05,2]
[348870839,1736837434250,-500.0,9.997e-05,2]
[348870840,1736837434259,-1650.76,9.997e-05,2]
[348870841,1736837434269,-1329.52,9.997e-05,2]
[348870842,1736837434279,-531.57038923,9.997e-05,2]
[348870843,1736837434289,-7917.67,9.997e-05,2]
[348870844,1736837434298,-500.0,9.997e-05,2]
[348870845,1736837434308,-2286.38,9.997e-05,2]
[348870846,1736837434317,-500.0,9.997e-05,2]
[348870847,1736837434326,-2214.92,9.997e-05,2]
[348870848,1736837434336,-1549.3,9.997e-05,2]
[348870849,1736837434346,-1985.34,9.997e-05,2]
[348870850,1736837434356,-500.0,9.997e-05,2]
[348870851,1736837434366,-500.0,9.997e-05,2]
[348870852,1736837434375,-2663.2,9.997e-05,2]
[348870853,1736837434611,-500.0,9.997e-05,2]
[348870854,1736837434621,-500.0,9.997e-05,2]
[348870855,1736837434631,-500.0,9.997e-05,2]
[348870856,1736837434640,-500.0,9.997e-05,2]
[348870857,1736837434650,-1364.46,9.997e-05,2]
[348870858,1736837434659,-733.02144815,9.997e-05,2]
[348870859,1736837434672,-2463.05855185,9.997e-05,2]
[348870860,1736837434681,-500.0,9.997e-05,2]
[348870861,1736837434691,-2094.25,9.997e-05,2]
[348870862,1736837434701,-500.0,9.997e-05,2]
[348870863,1736837434710,-828.33,9.997e-05,2]
[348870864,1736837434719,-646.39,9.997e-05,2]
[348870865,1736837434729,-500.0,9.997e-05,2]
[348870866,1736837434739,-2988.90626945,9.997e-05,2]
[348870873,1736837437911,-618.49444355,9.997e-05,2]
[348870874,1736837437923,-962.379287,9.997e-05,2]
[348870875,1736837437933,-315.0910625,9.997e-05,2]
[348870876,1736837437945,-1276.7889375,9.997e-05,2]
[348870877,1736837437954,-1393.7,9.997e-05,2]
[348870878,1736837437964,-336.30917275,9.997e-05,2]
[348870879,1736837437976,-1004.00312999,9.997e-05,2]
[348870880,1736837437988,-2340.47769726,9.997e-05,2]
[348870881,1736837437997,-1463.23501075,9.997e-05,2]
[348870924,1736837440096,-118.96498925,9.997e-05,2]
[348870925,1736837440106,-658.16420964,9.997e-05,2]
[348870926,1736837440228,-676.43579036,9.997e-05,2]
[348870927,1736837440239,-1838.63,9.997e-05,2]
[348870928,1736837440248,-1379.09,9.997e-05,2]
[348870929,1736837440259,-1917.77,9.997e-05,2]
[348870930,1736837440270,-1827.11,9.997e-05,2]
[348870931,1736837440281,-545.46,9.997e-05,2]
[348870932,1736837440291,-500.0,9.997e-05,2]
[348870933,1736837440300,-636.61,9.997e-05,2]
[348870934,1736837440310,-1161.02,9.997e-05,2]
[348870935,1736837440320,-1131.95,9.997e-05,2]
[348870936,1736837440329,-500.0,9.997e-05,2]
[348870937,1736837440339,-604.16,9.997e-05,2]
[348870938,1736837440348,-727.57011289,9.997e-05,2]
[348870939,1736837440377,-778.98316132,9.997e-05,2]
[348870940,1736837442908,-500.0,9.997e-05,2]
[348870941,1736837442918,-2267.85,9.997e-05,2]
[348870942,1736837442927,-500.0,9.997e-05,2]
[348870943,1736837442937,-586.94,9.997e-05,2]
[348870944,1736837442945,-500.0,9.997e-05,2]
[348870945,1736837442955,-2089.84,9.997e-05,2]
[348870946,1736837442965,-1043.87,9.997e-05,2]
[348870947,1736837442974,-841.06,9.997e-05,2]
[348870948,1736837442983,-561.01,9.997e-05,2]
[348870949,1736837442993,-1291.678,9.998e-05,2]
[348870950,1736837443003,-500.0,9.998e-05,2]
[348870951,1736837443012,-500.0,9.998e-05,2]
[348870952,1736837443021,-500.0,9.998e-05,2]
[348870953,1736837443030,-500.0,9.998e-05,2]
[348870954,1736837443041,-500.0,9.998e-05,2]
[348870955,1736837443050,-862.84,9.998e-05,2]
[348870956,1736837443059,-602.34,9.998e-05,2]
[348870957,1736837443069,-720.58521538,9.998e-05,2]
[348870958,1736837443081,-39.79478462,9.998e-05,2]
[348870959,1736837443091,-626.78,9.998e-05,2]
[348870960,1736837443100,-500.0,9.998e-05,2]
[348870961,1736837443109,-68.10960736,9.998e-05,2]
[348870962,1736837443121,-379.500005,9.998e-05,2]
[348870963,1736837443141,-52.39038764,9.998e-05,2]
[348870964,1736837443151,-289.69161224,9.998e-05,2]
[348870965,1736837443162,-210.30838776,9.998e-05,2]
[348870966,1736837443171,-442.93627238,9.998e-05,2]
[348870967,1736837443184,-57.06372762,9.998e-05,2]
[348870968,1736837443193,-535.32,9.998e-05,2]
[348870969,1736837443203,-500.0,9.998e-05,2]
[348870970,1736837443212,-824.48,9.998e-05,2]
[348870971,1736837443221,-756.96,9.998e-05,2]
[348870972,1736837443230,-833.77,9.998e-05,2]
[348870973,1736837443239,-122.55188142,9.998e-05,2]
[348870974,1736837443251,-377.44811858,9.998e-05,2]
[348870975,1736837443261,-500.0,9.998e-05,2]
[348870976,1736837443270,-500.0,9.998e-05,2]
[348870977,1736837443280,-967.54,9.998e-05,2]
[348870978,1736837443289,-500.0,9.998e-05,2]
[348870979,1736837443299,-276.50933431,9.998e-05,2]
[348870980,1736837443308,-500.0,9.998e-05,2]
[348870981,1736837443317,-500.0,9.998e-05,2]
[348870982,1736837443327,-1064.7,9.998e-05,2]
[348870983,1736837443337,-500.0,9.998e-05,2]
[348870984,1736837443346,-500.0,9.998e-05,2]
[348870985,1736837443357,-589.31,9.998e-05,2]
[348870986,1736837443366,-500.0,9.998e-05,2]
[348870987,1736837443375,-500.0,9.998e-05,2]
[348870988,1736837443385,-608.44830267,9.998e-05,2]
[348870989,1736837443632,-1038.61,9.998e-05,2]
[348870990,1736837443642,-500.0,9.998e-05,2]
[348870991,1736837443651,-1108.4,9.998e-05,2]
[348870992,1736837443661,-500.0,9.998e-05,2]
[348870993,1736837443670,-500.0,9.998e-05,2]
[348870994,1736837443680,-500.0,9.998e-05,2]
[348870995,1736837443689,-500.0,9.998e-05,2]
[348870996,1736837443698,-852.05,9.998e-05,2]
[348870997,1736837443708,-229.43426445,9.998e-05,2]
[348870998,1736837443717,-516.52025277,9.998e-05,2]
[348870999,1736837443726,-500.0,9.998e-05,2]
[348871000,1736837443736,-500.0,9.998e-05,2]
[348871001,1736837443745,-500.0,9.998e-05,2]
[348871002,1736837443754,-500.0,9.998e-05,2]
[348871003,1736837443763,-500.0,9.998e-05,2]
[348871004,1736837443773,-828.53,9.998e-05,2]
[348871005,1736837443782,-500.0,9.998e-05,2]
[348871006,1736837443791,-681.54,9.998e-05,2]
[348871007,1736837443800,-160.43817692,9.998e-05,2]
[348871008,1736837443834,-339.56182308,9.998e-05,2]
[348871009,1736837443843,-632.75,9.998e-05,2]
[348871010,1736837443853,-1134.78861948,9.998e-05,2]
[348871019,1736837445956,-1474.85,9.997e-05,2]
[348871020,1736837445966,-402.00138052,9.998e-05,2]
[348871021,1736837445976,-500.0,9.998e-05,2]
[348871022,1736837445985,-884.41,9.998e-05,2]
[348871023,1736837445994,-753.44,9.998e-05,2]
[348871024,1736837446003,-500.0,9.998e-05,2]
[348871025,1736837446012,-500.0,9.998e-05,2]
[348871026,1736837446021,-687.5,9.998e-05,2]
[348871027,1736837446030,-811.86,9.998e-05,2]
[348871028,1736837446039,-500.0,9.998e-05,2]
[348871029,1736837446048,-1034.66,9.998e-05,2]
[348871030,1736837446057,-500.0,9.998e-05,2]
[348871031,1736837446066,-909.65,9.998e-05,2]
[348871032,1736837446075,-1861.13,9.998e-05,2]
[348871033,1736837446085,-858.0,9.998e-05,2]
[348871034,1736837446094,-500.0,9.998e-05,2]
[348871035,1736837446103,-500.0,9.998e-05,2]
[348871036,1736837446112,-500.0,9.998e-05,2]
[348871037,1736837446121,-500.0,9.998e-05,2]
[348871038,1736837446131,-4521.22,9.998e-05,2]
[348871039,1736837446140,-500.0,9.998e-05,2]
[348871040,1736837446149,-500.0,9.998e-05,2]
[348871041,1736837446159,-500.0,9.998e-05,2]
[348871042,1736837446168,-500.0,9.998e-05,2]
[348871043,1736837446178,-739.22,9.998e-05,2]
[348871044,1736837446187,-500.0,9.998e-05,2]
[348871045,1736837446197,-500.0,9.998e-05,2]
[348871046,1736837446206,-500.0,9.998e-05,2]
[348871047,1736837446215,-500.0,9.998e-05,2]
[348871048,1736837446224,-3187.16,9.998e-05,2]
[348871049,1736837446234,-500.0,9.998e-05,2]
[348871050,1736837446243,-500.0,9.998e-05,2]
[348871051,1736837446252,-500.0,9.998e-05,2]
[348871052,1736837446262,-500.0,9.998e-05,2]
[348871053,1736837446271,-834.72,9.998e-05,2]
[348871054,1736837446281,-500.0,9.998e-05,2]
[348871055,1736837446290,-2200.82,9.999e-05,2]
[348871056,1736837446300,-925.281844,9.999e-05,2]
[348871057,1736837446309,-837.891355,9.999e-05,2]
[348871058,1736837446319,-1150.93,9.999e-05,2]
[348871059,1736837446329,-1027.99,9.999e-05,2]
[348871060,1736837446338,-1640.92,9.999e-05,2]
[348871061,1736837446348,-3185.02,9.999e-05,2]
[348871062,1736837446357,-1725.02,9.999e-05,2]
[348871063,1736837446366,-1285.41,9.999e-05,2]
[348871064,1736837446376,-506.38874366,9.999e-05,2]